[Event "ARA Cto Aragon Equipos Division Honor"]
[Site "Aragon"]
[Date "2021.06.05"]
[Round "10.2"]
[White "Glavina, Pablo"]
[Black "Llorente Zaro, Alfonso"]
[Result "0-1"]
[ECO "B22"]
[WhiteElo "2410"]
[BlackElo "2441"]
[PlyCount "128"]
[EventDate "2021.??.??"]
[EventType "team"]
[EventRounds "10"]
[EventCountry "ESP"]
[WhiteTeam "MyInvestor Casablanca"]
[BlackTeam "Jaime Casas"]
[TimeControl "6000+710"]
[WhiteClock "0:47:22"]
[BlackClock "0:02:40"]

1. e4 {[%emt 0:00:32]} c5 {[%emt 0:00:19]} 2. Nf3 {[%emt 0:00:05]} Nc6 {[%emt
0:00:07]} 3. c3 {[%emt 0:00:15]} Nf6 {[%emt 0:00:37]} 4. e5 {[%emt 0:00:08]}
Nd5 {[%emt 0:00:11]} 5. d4 {[%emt 0:00:54]} cxd4 {[%emt 0:00:18]} 6. Bc4 {
[%emt 0:00:05]} Nb6 {[%emt 0:00:14]} 7. Bb3 {[%emt 0:00:04]} d5 {[%emt 0:00:37]
} 8. exd6 {[%emt 0:00:05]} Qxd6 {[%emt 0:00:22]} 9. Na3 {[%emt 0:00:04]} Be6 {
[%emt 0:01:38]} 10. Nb5 {[%emt 0:00:03]} Qd7 {[%emt 0:00:12]} 11. Bxe6 {[%emt
0:00:04]} Qxe6+ {[%emt 0:00:07]} 12. Be3 {[%emt 0:00:04]} Qd7 {[%emt 0:05:55]}
13. Nbxd4 {[%emt 0:01:01]} e6 {[%emt 0:07:42]} 14. O-O {[%emt 0:00:49]} Be7 {
[%emt 0:02:05]} 15. Qb3 {[%emt 0:04:07]} Na5 {[%emt 0:07:28]} 16. Qb5 {[%emt 0:
01:42]} Nac4 {[%emt 0:01:17]} 17. Bc1 {[%emt 0:02:46]} O-O {[%emt 0:05:31]} 18.
b3 {[%emt 0:00:08]} Qxb5 {[%emt 0:00:33]} 19. Nxb5 {[%emt 0:00:06]} Nd6 {[%emt
0:00:03]} 20. Nxd6 {[%emt 0:00:29]} Bxd6 {[%emt 0:00:01]} 21. c4 {[%emt 0:00:
10]} Bc5 {[%emt 0:12:20]} 22. Bd2 {[%emt 0:03:54]} Rfd8 {[%emt 0:01:58]} 23.
Ba5 {[%emt 0:00:31]} Rdc8 {[%emt 0:11:02]} 24. Rfd1 {[%emt 0:01:09]} Kf8 {
[%emt 0:00:40]} 25. Ne5 {[%emt 0:03:57]} f6 {[%emt 0:06:02]} 26. Nd3 {[%emt 0:
00:03]} Bd4 {[%emt 0:00:41]} 27. Rac1 {[%emt 0:00:24]} e5 {[%emt 0:01:37]} 28.
Kf1 {[%emt 0:00:09]} Nd7 {[%emt 0:05:13]} 29. Nf4 {[%emt 0:06:54]} Nc5 {[%emt
0:00:13]} 30. Ne2 {[%emt 0:10:57]} Ne6 {[%emt 0:00:41]} 31. Nxd4 {[%emt 0:01:
04]} Nxd4 {[%emt 0:01:03]} 32. Bc3 {[%emt 0:00:11]} Nc6 {[%emt 0:01:34]} 33.
Rd7 {[%emt 0:00:41]} Rab8 {[%emt 0:00:24]} 34. Rcd1 {[%emt 0:00:28]} b5 {[%emt
0:10:44]} 35. cxb5 {[%emt 0:02:29]} Rxb5 {[%emt 0:00:02]} 36. Bb2 {[%emt 0:00:
07]} a5 {[%emt 0:03:06]} 37. Rc1 {[%emt 0:04:22]} Rbb8 {[%emt 0:00:21]} 38. Rc4
{[%emt 0:02:44]} Kg8 {[%emt 0:04:36]} 39. Bc3 {[%emt 0:00:53]} Nb4 {[%emt 0:01:
56]} 40. a3 {[%emt 0:01:46]} Rxc4 {[%emt 0:00:15]} 41. bxc4 {[%emt 0:00:05]}
Nc6 {[%emt 0:00:20]} 42. Ke2 {[%emt 0:05:16]} Rb3 {[%emt 0:00:38]} 43. Kd2 {
[%emt 0:00:57]} Rxa3 {[%emt 0:01:19]} 44. Kc2 {[%emt 0:00:12]} Ra2+ {[%emt 0:
07:36]} 45. Kb3 {[%emt 0:05:23]} Rxf2 {[%emt 0:00:02]} 46. c5 {[%emt 0:00:04]}
Rf4 {[%emt 0:00:34]} 47. Rd6 {[%emt 0:00:43]} a4+ {[%emt 0:00:43]} 48. Kc2 {
[%emt 0:00:14]} Nb4+ {[%emt 0:00:15]} 49. Bxb4 {[%emt 0:01:51]} Rxb4 {[%emt 0:
00:01]} 50. Kc3 {[%emt 0:00:06]} Rb1 {[%emt 0:00:26]} 51. Kc4 {[%emt 0:00:26]}
Kf7 {[%emt 0:01:08]} 52. Ra6 {[%emt 0:00:05]} Rd1 {[%emt 0:01:13]} 53. Kb5 {
[%emt 0:00:17]} e4 {[%emt 0:00:55]} 54. Rxa4 {[%emt 0:00:04]} f5 {[%emt 0:00:
18]} 55. c6 {[%emt 0:00:14]} Rc1 {[%emt 0:00:42]} 56. Kb6 {[%emt 0:00:45]} e3 {
[%emt 0:00:38]} 57. Ra2 {[%emt 0:00:24]} Ke6 {[%emt 0:01:15]} 58. Ra3 {[%emt 0:
00:45]} f4 {[%emt 0:00:45]} 59. c7 {[%emt 0:00:04]} e2 {[%emt 0:00:18]} 60. Ra1
{[%emt 0:00:03]} e1=Q {[%emt 0:00:48]} 61. c8=Q+ {[%emt 0:00:04]} Rxc8 {[%emt
0:00:06]} 62. Rxe1+ {[%emt 0:00:05]} Kf6 {[%emt 0:00:06]} 63. Re2 {[%emt 0:00:
13]} g5 {[%emt 0:00:06]} 64. h3 {[%emt 0:00:09]} h5 {[%emt 0:00:07]} 0-1

[Event "ARA Cto Aragon Equipos Division Honor"]
[Site "Aragon"]
[Date "2021.06.05"]
[Round "10.3"]
[White "Antoli Royo, Joaquin Miguel"]
[Black "Quintin Navarro, Alberto"]
[Result "0-1"]
[ECO "C47"]
[WhiteElo "2423"]
[BlackElo "2394"]
[PlyCount "66"]
[EventDate "2021.??.??"]
[EventType "team"]
[EventRounds "10"]
[EventCountry "ESP"]
[WhiteTeam "Jaime Casas"]
[BlackTeam "MyInvestor Casablanca"]
[TimeControl "6000+1070"]
[WhiteClock "0:03:32"]
[BlackClock "0:08:19"]

1. e4 {[%emt 0:00:19]} e5 {[%emt 0:00:09]} 2. Nf3 {[%emt 0:00:59]} Nc6 {[%emt
0:00:08]} 3. Nc3 {[%emt 0:00:28]} Nf6 {[%emt 0:00:40]} 4. d4 {[%emt 0:00:16]}
exd4 {[%emt 0:00:08]} 5. Nd5 {[%emt 0:00:06]} Nb4 {[%emt 0:00:59]} 6. Nxf6+ {
[%emt 0:00:43]} Qxf6 {[%emt 0:02:19]} 7. Bc4 {[%emt 0:00:17]} Bc5 {[%emt 0:07:
34]} 8. O-O {[%emt 0:00:24]} O-O {[%emt 0:03:12]} 9. e5 {[%emt 0:00:11]} Qg6 {
[%emt 0:09:33]} 10. a3 {[%emt 0:01:15]} Nc6 {[%emt 0:00:21]} 11. b4 {[%emt 0:
16:57]} Bb6 {[%emt 0:03:35]} 12. b5 {[%emt 0:18:16]} Ne7 {[%emt 0:02:37]} 13.
Bd3 {[%emt 0:08:11]} Qh5 {[%emt 0:03:07]} 14. Re1 {[%emt 0:00:06]} d5 {[%emt 0:
04:53]} 15. exd6 {[%emt 0:01:03]} Ng6 {[%emt 0:00:13]} 16. h3 {[%emt 0:09:39]}
cxd6 {[%emt 0:10:32]} 17. Bb2 {[%emt 0:00:02]} Nf4 {[%emt 0:03:00]} 18. a4 {
[%emt 0:09:24]} Nxg2 {[%emt 0:04:42]} 19. Re4 {[%emt 0:02:25]} Bf5 {[%emt 0:10:
40]} 20. a5 {[%emt 0:07:24]} Bc5 {[%emt 0:06:38]} 21. Nxd4 {[%emt 0:01:58]}
Qxd1+ {[%emt 0:00:58]} 22. Rxd1 {[%emt 0:00:02]} Bxe4 {[%emt 0:00:09]} 23. Bxe4
{[%emt 0:00:07]} Nf4 {[%emt 0:00:07]} 24. Bxb7 {[%emt 0:00:50]} Rab8 {[%emt 0:
04:02]} 25. a6 {[%emt 0:00:30]} Rbe8 {[%emt 0:04:33]} 26. Kf1 {[%emt 0:02:08]}
Nxh3 {[%emt 0:04:39]} 27. Nf5 {[%emt 0:02:53]} Nxf2 {[%emt 0:01:30]} 28. Rd2 {
[%emt 0:03:36]} Ng4 {[%emt 0:03:17]} 29. Rg2 {[%emt 0:03:00]} h5 {[%emt 0:00:
07]} 30. Bxg7 {[%emt 0:01:08]} Re6 {[%emt 0:00:08]} 31. Bd5 {[%emt 0:05:20]}
Rfe8 {[%emt 0:01:28]} 32. Bc3 {[%emt 0:01:25]} Kh7 {[%emt 0:01:43]} 33. Rg3 {
[%emt 0:02:00]} Re5 {[%emt 0:01:08] Kg1 [%emt 00:01:42]} 0-1

[Event "ARA Cto Aragon Equipos Division Honor"]
[Site "Aragon"]
[Date "2021.06.05"]
[Round "10.4"]
[White "Bayo Milagro, Alvaro"]
[Black "Ramiro Ovejero, Juan Luis"]
[Result "1/2-1/2"]
[ECO "A21"]
[WhiteElo "2257"]
[BlackElo "2345"]
[PlyCount "73"]
[EventDate "2021.??.??"]
[EventType "team"]
[EventRounds "10"]
[EventCountry "ESP"]
[WhiteTeam "MyInvestor Casablanca"]
[BlackTeam "Jaime Casas"]
[TimeControl "6000+1075"]
[WhiteClock "0:01:07"]
[BlackClock "0:01:07"]

1. c4 {[%emt 0:00:12]} e5 {[%emt 0:00:26]} 2. Nc3 {[%emt 0:00:13]} Bb4 {[%emt
0:00:14]} 3. Nd5 {[%emt 0:00:12]} Na6 {[%emt 0:01:11]} 4. a3 {[%emt 0:12:14]}
Ba5 {[%emt 0:00:24]} 5. b4 {[%emt 0:05:45]} c6 {[%emt 0:00:06]} 6. Nc3 {[%emt
0:00:07]} Bc7 {[%emt 0:00:58]} 7. d4 {[%emt 0:00:45]} Nf6 {[%emt 0:05:08]} 8.
Bg5 {[%emt 0:02:54]} h6 {[%emt 0:16:42]} 9. Bh4 {[%emt 0:00:29]} Qe7 {[%emt 0:
06:28]} 10. d5 {[%emt 0:10:41]} e4 {[%emt 0:14:37]} 11. e3 {[%emt 0:00:43]} Be5
{[%emt 0:01:37]} 12. Rc1 {[%emt 0:06:31]} g5 {[%emt 0:08:36]} 13. Bg3 {[%emt 0:
00:14]} d6 {[%emt 0:00:31]} 14. Nge2 {[%emt 0:02:31]} c5 {[%emt 0:01:18]} 15.
h4 {[%emt 0:02:26]} O-O {[%emt 0:09:01]} 16. hxg5 {[%emt 0:03:54]} hxg5 {[%emt
0:00:05]} 17. Bxe5 {[%emt 0:18:21]} Qxe5 {[%emt 0:00:14]} 18. Ng3 {[%emt 0:00:
08]} Bg4 {[%emt 0:02:31]} 19. Be2 {[%emt 0:04:06]} Bxe2 {[%emt 0:00:40]} 20.
Qxe2 {[%emt 0:00:02]} Kg7 {[%emt 0:03:09]} 21. Qb2 {[%emt 0:04:04]} Rh8 {[%emt
0:06:57]} 22. Ke2 {[%emt 0:00:22]} Rh4 {[%emt 0:03:40]} 23. Qa1 {[%emt 0:14:28]
} Kg6 {[%emt 0:10:27]} 24. b5 {[%emt 0:05:38]} Nb8 {[%emt 0:01:47]} 25. Qb1 {
[%emt 0:01:28]} Rxh1 {[%emt 0:00:19]} 26. Nxh1 {[%emt 0:00:09]} Nbd7 {[%emt 0:
01:22]} 27. f3 {[%emt 0:00:21]} Re8 {[%emt 0:03:27]} 28. Nf2 {[%emt 0:00:37]}
Qh2 {[%emt 0:01:08]} 29. Rg1 {[%emt 0:03:22]} Nh5 {[%emt 0:01:00]} 30. Ncxe4 {
[%emt 0:00:33]} f5 {[%emt 0:00:18]} 31. g4 Nf4+ {[%emt 0:00:45]} 32. exf4 {
[%emt 0:00:31]} fxe4 {[%emt 0:00:04]} 33. fxg5 {[%emt 0:01:49]} Kxg5 {[%emt 0:
00:50]} 34. fxe4 {[%emt 0:00:09]} Rf8 {[%emt 0:00:29]} 35. Rf1 {[%emt 0:00:53]}
Ne5 {[%emt 0:00:25]} 36. Qc1+ {[%emt 0:03:51]} Kg6 {[%emt 0:00:04]} 37. Ke1 {
[%emt 0:02:11]} 1/2-1/2